bitfinex/quotes_SOLUSD_20240612
["timestamp","ask_amount","ask_price","bid_price","bid_amount"]
[1718223273837,0.68,154.0,153.94,4.5]
[1718223274437,100.0,154.03,153.94,4.5]
[1718223274803,119.46,154.03,153.94,4.5]
[1718223275011,100.0,154.01,153.94,4.5]
[1718223275602,200.0,154.03,153.94,4.5]
[1718223276218,219.46,154.03,153.96,4.5]
[1718223276430,45.0,154.02,153.96,4.5]
[1718223277032,100.0,154.03,153.96,4.5]
[1718223277421,0.17,154.01,153.96,4.5]
[1718223277621,0.51,154.01,153.96,4.5]
[1718223277820,0.17,154.0,153.96,4.5]
[1718223278206,7.48485502,154.04,153.97,15.3435]
[1718223278405,6.81513441,154.07,154.0,4.5]
[1718223278406,100.0,154.07,154.0,4.5]
[1718223278613,6.6403,154.09,154.0,4.5]
[1718223278614,106.6403,154.09,154.0,4.5]
[1718223279433,100.0,154.07,154.0,4.5]
[1718223279731,100.0,154.07,153.98,4.5]
[1718223279929,0.34,154.06,153.98,4.5]
[1718223280115,0.51,154.05,153.98,4.5]
[1718223280317,0.34,154.04,153.98,4.5]
[1718223280623,0.17,154.02,153.98,4.5]
[1718223280928,0.34,154.02,153.98,4.5]
[1718223281101,0.34,154.01,153.98,4.5]
[1718223281421,0.34,154.0,153.98,4.5]
[1718223281606,0.34,153.99,153.98,4.5]
[1718223281807,0.51,153.99,153.98,4.5]
[1718223283505,100.0,154.06,153.98,4.5]
[1718223284328,100.0,154.04,153.98,4.5]
[1718223285028,0.17,154.02,153.98,4.5]
[1718223286819,100.0,154.05,153.98,4.5]
[1718223288331,231.2079234,154.09,153.98,4.5]
[1718223288543,100.0,154.07,153.98,4.5]
[1718223288731,119.46,154.07,153.98,4.5]
[1718223289322,119.46,154.07,154.0,4.5]
[1718223289523,0.17,154.05,154.0,4.5]
[1718223290536,100.17,154.05,153.98,4.5]
[1718223290716,0.17,154.03,153.98,4.5]
[1718223293108,0.17,154.03,154.0,4.5]
[1718223295030,0.17,154.03,153.97,15.3435]
[1718223295215,45.17,154.03,153.97,15.3435]
[1718223295540,0.17,154.01,153.97,15.3435]
[1718223297025,0.17,154.01,153.98,4.5]
[1718223297211,0.51,154.02,153.98,4.5]
[1718223298117,0.17,154.01,153.98,4.5]
[1718223298633,0.51,154.02,153.98,4.5]
[1718223299340,0.17,154.02,153.98,4.5]
[1718223300332,100.0,154.05,153.98,4.5]
[1718223300538,0.34,154.04,153.98,4.5]
[1718223300853,0.17,154.03,154.0,4.5]
[1718223301027,0.17,154.04,154.0,10.719]
[1718223301755,0.17,154.04,154.0,6.219]
[1718223301966,0.17,154.04,153.98,4.5]
[1718223302275,0.34,154.04,154.0,4.5]
[1718223302424,0.34,154.03,154.0,4.5]
[1718223302625,0.17,154.02,154.0,4.5]
[1718223304563,0.34,154.02,153.98,4.5]
[1718223304860,0.34,154.01,153.98,4.5]
[1718223305060,0.17,154.0,153.98,4.5]
[1718223305432,0.51,154.0,153.98,4.5]
[1718223305631,0.17,153.99,153.98,4.5]
[1718223305870,0.34,153.99,153.98,4.5]
[1718223306160,0.17,154.04,153.98,4.5]
[1718223306368,0.68,154.04,153.98,4.5]
[1718223306868,100.0,154.12,154.02,2.4022]
[1718223307078,119.46,154.16,154.08,4.5]
[1718223307372,100.0,154.18,154.09,15.3231]
[1718223307576,100.0,154.18,154.1,4.5]
[1718223308275,100.0,154.2,154.13,4.5]
[1718223308643,100.0,154.26,154.13,4.5]
[1718223308861,100.0,154.26,154.15,4.5]
[1718223309366,119.46,154.26,154.17,4.5]
[1718223309662,119.46,154.26,154.13,4.5]
[1718223309663,100.0,154.2,154.13,4.5]
[1718223309862,100.0,154.18,154.11,4.5]
[1718223310064,100.0,154.14,154.09,15.3231]
[1718223310245,219.46,154.14,154.08,6.3034]
[1718223310449,219.46,154.14,154.04,22.4991]
[1718223310450,200.0,154.12,154.04,22.4991]
[1718223310657,100.0,154.14,154.07,4.5]
[1718223310957,100.0,154.21,154.09,4.5]
[1718223311185,100.0,154.23,154.13,4.5]
[1718223311349,124.33,154.26,154.13,4.5]
[1718223311677,26.1238,154.29,154.19,4.5]
[1718223311840,124.33,154.3,154.19,25.8197]
[1718223312040,129.39942317,154.3,154.19,25.8197]
[1718223312245,200.0,154.28,154.19,25.8197]
[1718223312639,29.39942317,154.3,154.19,25.8197]
[1718223312640,219.46,154.26,154.19,25.8197]
[1718223312871,29.39942317,154.3,154.14,15.3391]
[1718223312872,100.0,154.19,154.14,15.3391]
[1718223313073,100.0,154.19,154.12,4.5]
[1718223313383,0.17,154.18,154.12,4.5]
[1718223313686,0.51,154.18,154.12,4.5]
[1718223313858,11.8414,154.29,154.15,4.5]
[1718223313859,100.0,154.27,154.15,4.5]
[1718223314045,100.0,154.23,154.17,4.5]
[1718223314369,200.0,154.25,154.17,4.5]
[1718223314661,100.0,154.27,154.17,4.5]
[1718223315077,119.46,154.27,154.17,4.5]
[1718223315262,45.68,154.26,154.17,4.5]
[1718223315473,0.17,154.26,154.19,4.5]
[1718223315778,0.17,154.26,154.2,6.2366]
[1718223315945,100.0,154.31,154.22,4.5]
[1718223316150,77.034762,154.4,154.24,4.5]
[1718223316151,100.0,154.35,154.24,4.5]
[1718223316358,100.0,154.35,154.26,4.5]
[1718223316559,100.0,154.37,154.26,4.5]
[1718223316853,0.7957044,154.38,154.28,20.8306]
[1718223317058,0.7957044,154.38,154.29,6.6232]
[1718223317252,0.7957044,154.38,154.31,4.5]
[1718223318259,100.7957044,154.38,154.29,11.1232]
[1718223318567,0.7957044,154.38,154.29,11.1232]
[1718223318755,100.0,154.37,154.29,11.1232]
[1718223318963,100.0,154.34,154.29,11.1232]
[1718223319155,100.0,154.36,154.29,11.1232]
[1718223319474,200.0,154.36,154.29,11.1232]
[1718223319674,100.0,154.33,154.29,4.5]
[1718223319875,100.0,154.31,154.28,16.3306]
[1718223320078,0.68,154.3,154.28,16.3306]
[1718223320255,0.17,154.32,154.28,16.3306]
[1718223320450,100.0,154.37,154.28,16.3306]
[1718223320658,100.0,154.35,154.28,16.3306]
[1718223320852,200.0,154.35,154.28,16.3306]
[1718223321071,200.0,154.33,154.27,4.5]
[1718223321373,200.0,154.37,154.27,4.5]
[1718223321774,0.17,154.36,154.27,4.5]
[1718223322075,0.68,154.37,154.29,4.5]
[1718223322370,200.68,154.37,154.29,4.5]
[1718223322586,0.17,154.35,154.29,4.5]
[1718223322882,0.68,154.35,154.29,4.5]
[1718223323586,0.7957044,154.38,154.29,4.5]
[1718223323753,100.0,154.35,154.29,4.5]
[1718223323950,0.7957044,154.38,154.29,4.5]
[1718223324460,0.7957044,154.38,154.24,10.7608]
[1718223324461,100.0,154.34,154.24,10.7608]
[1718223324771,200.0,154.33,154.24,10.7608]
[1718223325263,100.0,154.37,154.24,10.7608]
[1718223325452,200.17,154.35,154.24,10.7608]
[1718223325654,0.17,154.32,154.24,10.7608]
[1718223325956,45.68,154.32,154.24,10.7608]
[1718223326260,45.68,154.32,154.24,6.2608]
[1718223326261,0.17,154.3,154.24,6.2608]
[1718223326459,45.68,154.3,154.24,10.7608]
[1718223326879,0.68,154.3,154.24,10.7608]
[1718223327075,45.68,154.3,154.24,10.7608]
[1718223327275,0.17,154.28,154.23,16.41]
[1718223327455,0.68,154.28,154.24,4.5]
[1718223328282,45.68,154.28,154.24,4.5]
[1718223328479,0.68,154.28,154.24,4.5]
[1718223331461,0.68,154.28,154.23,16.41]
[1718223331685,0.17,154.26,154.23,16.41]
[1718223331873,0.17,154.26,154.18,15.4835]
[1718223331874,165.14,154.26,154.18,15.4835]
[1718223332184,0.17,154.24,154.18,15.4835]
[1718223332358,165.14,154.24,154.18,15.4835]
[1718223333376,145.68,154.24,154.18,15.4835]
[1718223333586,165.14,154.24,154.18,15.4835]
[1718223334394,0.17,154.22,154.18,15.4835]
[1718223334560,45.68,154.22,154.18,15.4835]
[1718223334757,100.0,154.21,154.16,6.4913]
[1718223334961,45.68,154.2,154.14,15.7904]
[1718223335786,0.17,154.18,154.14,15.7904]
[1718223335963,0.68,154.18,154.14,15.7904]
[1718223337487,20.14,154.18,154.06,21.6705]
[1718223337684,20.14,154.18,154.07,4.5]
[1718223337685,0.17,154.16,154.07,4.5]
[1718223337870,0.17,154.14,154.07,4.5]
[1718223338078,45.68,154.14,154.07,4.5]
[1718223338274,0.68,154.14,154.07,4.5]
[1718223338587,0.17,154.13,154.09,4.5]
[1718223338901,0.34,154.14,154.09,4.5]
[1718223339199,0.17,154.13,154.09,4.5]
[1718223339499,0.17,154.18,154.09,4.5]
[1718223339669,0.68,154.18,154.09,4.5]
[1718223339994,0.68,154.18,154.11,4.5]
[1718223340161,0.68,154.18,154.09,4.5]
[1718223340894,45.68,154.18,154.09,4.5]
[1718223341082,29.57827621,154.2,154.11,4.5]
[1718223341271,100.0,154.23,154.13,4.5]
[1718223341471,100.0,154.23,154.14,21.2868]
[1718223341668,129.51665958,154.25,154.15,4.5]
[1718223341867,15.4825,154.28,154.15,4.5]
[1718223341868,100.0,154.26,154.15,4.5]
[1718223342382,100.0,154.28,154.17,4.5]
[1718223342885,100.0,154.28,154.19,4.5]
[1718223343087,100.0,154.3,154.19,4.5]
[1718223343272,124.26,154.32,154.21,4.5]
[1718223343468,100.0,154.3,154.21,4.5]
[1718223343676,100.0,154.28,154.21,4.5]
[1718223343876,129.4548593,154.32,154.21,4.5]
[1718223344074,105.1948593,154.32,154.22,21.5733]
[1718223344269,100.0,154.32,154.23,4.5]
[1718223344488,100.0,154.32,154.25,4.5]
[1718223344794,200.0,154.32,154.25,4.5]
[1718223345177,219.46,154.32,154.25,4.5]
[1718223345486,100.0,154.29,154.22,21.5733]
[1718223345690,100.68,154.28,154.22,21.5733]
[1718223345873,0.17,154.26,154.22,21.5733]
[1718223346070,0.68,154.26,154.22,21.5733]
[1718223346290,0.51,154.26,154.22,21.5733]
[1718223346482,0.17,154.25,154.22,21.5733]
[1718223346682,100.0,154.3,154.22,21.5733]
[1718223346872,28.26,154.34,154.2,4.5]
[1718223346873,100.0,154.26,154.2,4.5]
[1718223347289,100.0,154.27,154.2,4.5]
[1718223347987,0.17,154.24,154.18,6.1307]
[1718223348185,100.0,154.16,154.09,0.91272529]
[1718223348370,12.84021274,154.15,154.04,4.5]
[1718223348578,0.68,154.15,154.07,4.5]
[1718223348770,55.13894388,154.15,154.07,4.5]
[1718223348971,0.17,154.13,154.07,4.5]
[1718223349294,0.68,154.13,154.07,4.5]
[1718223350390,45.68,154.13,154.07,4.5]
[1718223350694,0.17,154.1,154.03,4.5]
[1718223350900,88.24686322,154.1,154.03,4.5]
[1718223351103,0.17,154.08,154.03,4.5]
[1718223351302,0.34,154.08,154.03,4.5]
[1718223351601,0.17,154.06,154.03,4.5]
[1718223351813,0.34,154.06,154.03,4.5]
[1718223351975,0.17,154.04,153.97,22.061]
[1718223352175,0.34,154.04,153.97,22.061]
[1718223352371,0.17,154.02,153.97,22.061]
[1718223352815,0.34,154.02,153.97,22.061]
[1718223352995,0.34,154.01,153.97,22.061]
[1718223353194,0.17,154.0,153.97,22.061]
[1718223353502,0.34,154.0,153.94,4.5]
[1718223353690,0.17,153.98,153.92,6.1622]
[1718223353893,0.34,153.98,153.92,6.1622]
[1718223354105,0.34,153.97,153.92,6.1622]
[1718223354288,0.34,153.96,153.92,6.1622]
[1718223354483,0.34,153.95,153.92,6.1622]
[1718223355606,0.17,153.94,153.92,6.1622]
[1718223356497,0.17,153.94,153.88,21.05227088]
[1718223356702,0.34,153.94,153.88,21.05227088]
[1718223356896,0.17,153.92,153.88,21.05227088]
[1718223357222,0.34,153.92,153.88,21.05227088]
[1718223357386,0.17,153.89,153.84,0.7957044]
[1718223357595,45.68,153.89,153.84,0.7957044]
[1718223357782,65.68,153.89,153.84,0.7957044]
[1718223358011,20.68,153.89,153.84,0.7957044]
[1718223358323,0.17,153.85,153.84,0.7957044]
[1718223358510,0.17,153.85,153.73,0.75188501]
[1718223358511,100.0,153.84,153.75,22.6695]
[1718223358808,100.0,153.82,153.75,22.6695]
[1718223358979,120.34,153.81,153.75,22.6695]
[1718223359181,0.17,153.79,153.7,6.5394]
[1718223359381,0.17,153.79,153.71,4.5]
[1718223359615,0.17,153.8,153.71,4.5]
[1718223359616,0.51,153.8,153.71,4.5]
[1718223359821,0.51,153.8,153.71,15.7143658]
[1718223360122,0.17,153.81,153.71,18.1213658]
[1718223360281,0.17,153.8,153.71,15.7143658]
[1718223360482,20.17,153.8,153.71,15.7143658]
[1718223360704,0.34,153.79,153.71,15.7143658]
[1718223361119,109.80598572,153.83,153.71,15.7143658]
[1718223361120,9.80598572,153.83,153.74,4.5]
[1718223361321,0.17,153.81,153.71,11.2143658]
[1718223361609,0.17,153.76,153.71,11.2143658]
[1718223361817,20.0,153.78,153.71,11.2143658]
[1718223362505,0.34,153.79,153.71,11.2143658]
[1718223363080,0.17,153.78,153.71,11.2143658]
[1718223363281,0.17,153.76,153.71,11.2143658]
[1718223363588,65.68,153.76,153.71,11.2143658]
[1718223364081,20.68,153.76,153.71,11.2143658]
[1718223364281,0.68,153.76,153.71,11.2143658]
[1718223364588,0.17,153.72,153.71,11.2143658]
[1718223365104,65.68,153.72,153.71,11.2143658]
[1718223365481,20.68,153.72,153.71,11.2143658]
[1718223365681,120.68,153.72,153.71,11.2143658]
[1718223365882,165.68,153.72,153.71,11.2143658]
[1718223366116,65.68,153.72,153.71,11.2143658]
[1718223366410,120.68,153.72,153.71,11.2143658]
[1718223366581,65.68,153.72,153.71,11.2143658]
[1718223366788,20.68,153.72,153.71,11.2143658]
[1718223368123,109.80598572,153.76,153.71,11.2143658]
[1718223368484,20.0,153.75,153.71,11.2143658]
[1718223369220,100.0,153.74,153.71,11.2143658]
[1718223369410,0.51,153.73,153.71,11.2143658]
[1718223369599,0.17,153.72,153.71,11.2143658]
[1718223370114,109.80598572,153.76,153.71,11.2143658]
[1718223370115,9.80598572,153.76,153.71,11.2143658]
[1718223370286,100.0,153.79,153.71,11.2143658]
[1718223370616,9.80598572,153.8,153.72,4.5]
[1718223370812,8.47808485,153.83,153.74,4.5]
[1718223371116,109.80598572,153.82,153.72,4.5]
[1718223371326,100.0,153.8,153.71,11.2143658]
[1718223371612,100.0,153.75,153.71,11.2143658]
[1718223372510,0.68,153.74,153.71,11.2143658]
[1718223372717,100.0,153.79,153.71,11.2143658]
[1718223372906,8.47808485,153.8,153.71,15.7143658]
[1718223373112,165.0,153.79,153.71,15.7143658]
[1718223373313,20.0,153.79,153.71,15.7143658]
[1718223373511,100.0,153.83,153.73,4.5]
[1718223373726,20.0,153.82,153.73,4.5]
[1718223373917,100.0,153.83,153.73,4.5]
[1718223374421,100.0,153.83,153.71,11.2143658]
[1718223374422,100.0,153.87,153.76,4.5]
[1718223374793,28.26,153.88,153.78,4.5]
[1718223374999,100.0,153.87,153.76,11.2143658]
[1718223375203,100.0,153.87,153.78,4.5]
[1718223376244,100.0,153.82,153.76,11.2143658]
[1718223376537,100.0,153.81,153.76,11.2143658]
[1718223376833,100.0,153.82,153.76,11.2143658]
[1718223377008,128.26,153.83,153.76,11.2143658]
[1718223377210,0.17,153.82,153.76,11.2143658]
[1718223377508,8.22916496,153.86,153.77,4.5]
[1718223377712,125.08676415,153.87,153.77,4.5]
[1718223378022,100.0,153.85,153.77,4.5]
[1718223378814,100.0,153.83,153.76,33.0555658]
[1718223379315,0.17,153.83,153.77,4.5]
[1718223379638,0.68,153.83,153.77,4.5]
[1718223379804,100.68,153.83,153.76,33.0555658]
[1718223380009,100.17,153.81,153.76,33.0555658]
[1718223380306,0.34,153.8,153.77,4.5]
[1718223380636,0.17,153.79,153.77,4.5]
[1718223380807,0.17,153.8,153.77,4.5]
[1718223380998,0.34,153.81,153.77,4.5]
[1718223381330,0.34,153.83,153.79,4.5]
[1718223381511,0.34,153.82,153.79,4.5]
[1718223382920,20.77131132,153.88,153.79,4.5]
[1718223382921,20.0,153.86,153.79,4.5]
[1718223383120,100.0,153.89,153.82,4.5]
[1718223383516,105.60676415,153.92,153.82,4.5]
[1718223383719,105.60676415,153.92,153.84,4.5]
[1718223384936,0.68,153.91,153.84,4.5]
[1718223385113,0.68,153.91,153.86,4.5]
[1718223386263,20.68,153.91,153.86,4.5]
[1718223386421,20.68,153.91,153.86,27.1978]
[1718223386617,0.68,153.91,153.86,27.1978]
[1718223386817,0.68,153.91,153.88,4.5]
[1718223387124,100.0,153.98,153.88,4.5]
[1718223387443,100.0,153.98,153.93,4.5]
[1718223387636,100.0,153.96,153.89,4.5]
[1718223387939,205.28825879,154.0,153.91,4.5]
[1718223388144,100.0,153.98,153.91,4.5]
[1718223388647,0.17,153.97,153.91,4.5]
[1718223388828,45.68,153.97,153.91,4.5]
[1718223389518,0.17,153.95,153.89,4.5]
[1718223389729,45.68,153.95,153.89,4.5]
[1718223389923,0.17,153.94,153.89,14.8810293]
[1718223390124,0.51,153.94,153.91,4.5]
[1718223390339,0.34,153.94,153.91,4.5]
[1718223390643,0.34,153.93,153.89,14.8810293]
[1718223390817,0.51,153.92,153.89,10.3810293]
[1718223391321,0.17,153.91,153.89,10.3810293]
[1718223392639,0.17,153.91,153.84,0.8333365]
[1718223392640,100.0,153.87,153.84,0.8333365]
[1718223392952,0.17,153.84,153.76,4.5]
[1718223393134,0.68,153.84,153.8,4.5]
[1718223393336,0.51,153.84,153.76,4.5]
[1718223393535,0.17,153.83,153.76,4.5]
[1718223393734,0.17,153.82,153.79,4.5]
[1718223393963,0.17,153.87,153.79,4.5]
[1718223394127,0.68,153.87,153.81,4.5]
[1718223394323,0.51,153.87,153.83,4.5]
[1718223394549,0.17,153.86,153.83,4.5]
[1718223394851,0.68,153.86,153.81,4.5]
[1718223395651,0.34,153.86,153.81,4.5]
[1718223395958,0.17,153.86,153.81,4.5]
[1718223396142,5.1888643,153.92,153.85,4.5]
[1718223396339,100.0,153.92,153.85,4.5]
[1718223396849,105.30490088,153.94,153.85,4.5]
[1718223397238,124.78490088,153.94,153.87,4.5]
[1718223397436,105.30490088,153.94,153.87,4.5]
[1718223397741,0.34,153.93,153.87,4.5]
[1718223398656,0.17,153.92,153.87,4.5]
[1718223398952,0.34,153.92,153.87,4.5]
[1718223399153,100.0,153.97,153.89,4.5]
[1718223399337,119.48,153.99,153.91,4.5]
[1718223400060,100.0,153.99,153.93,4.5]
[1718223400441,100.0,154.02,153.93,4.5]
[1718223400643,100.0,154.0,153.93,4.5]
[1718223400953,100.0,153.98,153.91,4.5]
[1718223401150,100.0,154.0,153.91,4.5]
[1718223401445,100.0,154.0,153.93,11.0001]
[1718223402653,0.17,153.99,153.95,4.5]
[1718223402964,0.34,153.98,153.95,4.5]
[1718223403254,20.0,154.01,153.95,4.5]
[1718223403560,100.0,154.02,153.95,4.5]
[1718223403752,200.0,154.02,153.95,4.5]
[1718223404439,219.48,154.02,153.95,4.5]
[1718223404633,0.17,153.97,153.93,11.0001]
[1718223404829,0.68,153.97,153.93,11.0001]
[1718223405029,0.34,153.96,153.93,11.0001]
[1718223406266,20.0,154.01,153.95,4.5]
[1718223406461,45.68,154.0,153.95,4.5]
[1718223406653,100.0,153.99,153.93,11.0001]
[1718223406855,0.68,153.98,153.93,11.0001]
[1718223407263,100.68,153.98,153.95,4.5]
[1718223407453,100.68,153.98,153.93,11.0001]
[1718223407636,0.68,153.98,153.93,11.0001]
[1718223408636,45.0,154.0,153.93,11.0001]
[1718223408841,45.0,154.0,153.95,4.5]
[1718223409066,20.0,154.01,153.95,4.5]
[1718223409252,20.0,154.01,153.97,4.5]
[1718223409755,0.17,154.0,153.97,4.5]
[1718223410067,19.48,154.06,153.97,4.5]
[1718223410236,100.0,154.07,153.99,4.5]
[1718223410559,100.0,154.07,154.01,4.5]
[1718223411348,119.48,154.07,153.99,4.5]
[1718223412063,0.51,154.06,153.99,4.5]
[1718223412666,100.0,154.07,153.99,4.5]
[1718223412862,119.48,154.07,153.99,4.5]
[1718223413065,100.0,154.03,153.99,4.5]
[1718223413276,119.48,154.05,153.99,4.5]
[1718223413454,20.0,154.04,153.99,4.5]
[1718223413791,100.0,154.03,153.99,4.5]
[1718223413942,0.34,154.02,153.99,4.5]
[1718223414136,0.34,154.01,153.99,4.5]
[1718223414340,0.34,154.0,153.99,4.5]
[1718223414541,0.68,154.0,153.99,4.5]
[1718223414973,0.34,154.0,153.99,4.5]
[1718223415268,20.0,154.06,153.99,4.5]
[1718223415451,100.0,154.07,154.01,4.5]
[1718223415648,100.0,154.06,153.99,4.5]
[1718223416271,119.48,154.07,153.99,4.5]
[1718223416272,100.0,154.07,153.99,4.5]
[1718223416451,100.0,154.09,154.01,4.5]
[1718223416640,6.3733281,154.1,154.01,20.5414]
[1718223416842,30.98623057,154.1,154.01,20.5414]
[1718223417059,30.98623057,154.1,154.03,4.5]
[1718223417265,119.48,154.09,154.03,4.5]
[1718223417851,45.68,154.08,154.03,4.5]
[1718223418046,20.51,154.08,154.03,4.5]
[1718223418269,0.17,154.06,154.01,16.0414]
[1718223418472,20.51,154.06,154.01,16.0414]
[1718223418797,100.0,154.11,154.05,4.5]
[1718223418960,200.0,154.13,154.05,4.5]
[1718223419161,200.0,154.13,154.07,4.5]
[1718223419461,100.0,154.13,154.07,4.5]
[1718223419667,100.0,154.15,154.09,4.5]
[1718223420692,119.48,154.11,154.01,22.6678]
[1718223420856,119.48,154.11,154.04,4.5]
[1718223421062,100.0,154.09,154.04,4.5]
[1718223421250,0.17,154.07,154.04,4.5]
[1718223421462,164.99,154.07,154.01,22.6678]
[1718223421678,0.17,154.06,154.01,22.6678]
[1718223421858,20.17,154.06,154.01,22.6678]
[1718223422063,0.17,154.04,154.01,22.6678]
[1718223422297,20.34,154.04,154.01,22.6678]
[1718223422465,20.0,154.04,154.01,22.6678]
[1718223422984,0.34,154.05,154.01,22.6678]
[1718223423282,0.17,154.04,154.0,4.5]
[1718223423483,119.82,154.04,154.0,4.5]
[1718223423668,0.17,154.02,153.98,4.5]
[1718223423871,0.34,154.02,153.98,4.5]
[1718223424078,0.34,154.01,153.98,4.5]
[1718223424283,0.34,154.0,153.98,4.5]
[1718223424590,0.51,153.99,153.98,4.5]
[1718223424766,0.68,153.99,153.98,4.5]
[1718223425083,0.17,153.98,153.93,21.8617]
[1718223425272,0.34,153.98,153.93,26.3617]
[1718223425475,45.34,153.98,153.93,26.3617]
[1718223425780,0.17,153.96,153.93,26.3617]
[1718223425984,0.34,153.96,153.93,21.8617]
[1718223426158,0.34,153.95,153.93,21.8617]
[1718223426359,0.34,153.95,153.93,26.3617]
[1718223427003,20.0,153.97,153.93,26.3617]
[1718223427295,20.0,154.0,153.95,4.5]
[1718223427464,100.0,154.01,153.95,4.5]
[1718223427968,20.0,154.0,153.95,4.5]
[1718223428563,20.0,154.01,153.95,4.5]
[1718223428764,5.07070981,154.04,153.98,4.5]
[1718223428966,259.6,154.12,154.01,4.5]
[1718223429264,259.6,154.12,153.95,20.0]
[1718223429265,200.0,154.13,154.06,4.5]
[1718223429483,125.6183071,154.18,154.06,4.5]
[1718223429790,125.6183071,154.18,154.09,4.5]
[1718223429791,100.0,154.16,154.09,4.5]
[1718223430181,119.48,154.16,154.09,4.5]
[1718223430685,219.48,154.14,154.07,4.5]
[1718223430874,100.0,154.16,154.07,4.5]
[1718223431194,119.48,154.16,154.07,4.5]
[1718223431666,119.48,154.16,154.09,4.5]
[1718223432067,219.48,154.16,154.09,4.5]
[1718223432263,100.0,154.16,154.09,4.5]
[1718223432762,5.21047615,154.17,154.09,4.5]
[1718223432985,19.48,154.18,154.11,4.5]
[1718223433188,5.28658615,154.18,154.11,4.5]
[1718223433381,200.0,154.21,154.11,4.5]
[1718223433573,100.0,154.19,154.13,4.5]
[1718223433770,100.0,154.18,154.1,20.4267]
[1718223433990,100.0,154.18,154.12,4.5]
[1718223434494,0.8333365,154.22,154.14,4.5]
[1718223434788,0.8333365,154.22,154.12,4.5]
[1718223435163,0.8333365,154.22,154.14,4.5]
[1718223435686,100.0,154.21,154.12,4.5]
[1718223435871,20.0,154.2,154.12,4.5]
[1718223436190,20.0,154.2,154.15,4.5]
[1718223436963,0.8333365,154.22,154.15,4.5]
[1718223437163,0.8333365,154.22,154.17,4.5]
[1718223437478,100.8333365,154.22,154.15,4.5]
[1718223438165,100.0,154.2,154.13,4.5]
[1718223438701,0.68,154.19,154.13,4.5]
[1718223439002,0.8333365,154.22,154.13,4.5]
[1718223439164,0.8333365,154.22,154.15,4.5]
[1718223439561,0.8333365,154.22,154.12,4.5]
[1718223439562,100.0,154.18,154.12,4.5]
[1718223439779,120.0,154.17,154.12,4.5]